bitfinex-derivatives/quotes_ETHF0:USTF0_20250929
["timestamp","ask_amount","ask_price","bid_price","bid_amount"]
[1759158990578,0.2174,4181.9,4181.8,1.18054]
[1759158990795,0.547,4181.9,4181.8,1.18054]
[1759158991883,0.4464,4182.4,4182.3,0.63999]
[1759158992189,0.776,4182.4,4182.3,0.63999]
[1759158993587,0.00172799,4182.5,4182.3,1.18049]
[1759158993792,0.00172799,4182.5,4182.4,0.7504]
[1759158994980,0.00172799,4182.5,4182.4,1.18048]
[1759159001382,0.547,4183.5,4183.4,1.18038]
[1759159001787,0.776,4183.5,4183.4,1.18038]
[1759159001992,0.9113,4183.5,4183.4,1.18038]
[1759159003289,0.776,4183.5,4183.4,1.18038]
[1759159003485,0.5817,4184.0,4183.9,0.42993]
[1759159003791,0.5817,4184.0,4183.9,0.85563]
[1759159003986,0.9113,4184.0,4183.9,0.85563]
[1759159004294,0.9113,4184.0,4183.9,1.18033]
[1759159004486,0.547,4184.0,4183.9,1.18033]
[1759159004687,0.5817,4184.5,4184.4,1.18028]
[1759159004896,0.4464,4184.7,4184.6,0.85555]
[1759159005195,0.547,4184.7,4184.6,1.18025]
[1759159005389,0.547,4184.7,4184.6,1.18026]
[1759159005583,0.0122,4184.8,4184.7,0.3247]
[1759159005786,0.0122,4184.8,4184.7,0.7504]
[1759159008391,0.01421357,4184.8,4184.7,0.75224598]
[1759159010001,0.9113,4186.0,4185.9,1.18012]
[1759159010195,0.776,4186.4,4186.3,0.97017]
[1759159010396,0.776,4186.4,4186.3,1.18007]
[1759159010697,0.7768,4186.8,4186.7,1.18004]
[1759159011097,0.7768,4186.8,4186.7,0.4257]
[1759159012194,0.1353,4186.5,4185.6,0.3247]
[1759159012395,0.776,4185.7,4185.6,0.85545]
[1759159012594,0.776,4185.7,4185.6,0.2099]
[1759159013995,0.776,4185.7,4185.6,0.4257]
[1759159014193,0.1353,4186.0,4185.8,0.7497]
[1759159014194,0.3296,4185.9,4185.8,0.7497]
[1759159014495,0.7749,4186.4,4186.3,0.4217]
[1759159014698,0.7749,4186.4,4186.3,0.7497]
[1759159014898,0.573,4186.0,4185.9,0.63942]
[1759159015095,0.9026,4186.0,4185.8,0.245]
[1759159015402,0.3296,4185.9,4185.8,0.2097]
[1759159015594,0.7749,4185.9,4185.8,0.2097]
[1759159016202,0.7749,4185.9,4185.5,0.42975]
[1759159016203,0.4453,4185.9,4185.5,0.42975]
[1759159016506,0.7749,4185.6,4185.5,0.88445]
[1759159016801,0.7749,4185.6,4185.5,0.63945]
[1759159017902,0.7749,4185.6,4185.5,1.17945]
[1759159018201,0.5514,4185.6,4185.5,1.17945]
[1759159018504,0.553144,4185.6,4185.5,1.17945]
[1759159019407,0.776644,4185.6,4185.5,1.17945]
[1759159019606,0.776644,4185.6,4185.5,0.85145]
[1759159019796,0.776644,4185.6,4185.5,0.85146]
[1759159022398,0.553144,4185.6,4185.5,1.17946]
[1759159024106,0.776644,4185.6,4185.5,1.17946]
[1759159024610,0.776644,4185.6,4185.5,1.42446]
[1759159024807,0.001744,4185.6,4185.5,1.51656]
[1759159025804,0.001744,4185.6,4185.5,6.51656]
[1759159027413,0.5514,4186.5,4186.4,1.17937]
[1759159027615,0.5514,4186.5,4186.4,1.42437]
[1759159028408,0.0008,4186.8,4186.7,1.17934]
[1759159029104,0.0008,4186.8,4186.7,1.42434]
[1759159029314,0.3296,4188.3,4187.8,0.7497]
[1759159029504,0.3296,4188.3,4187.8,0.9947]
[1759159029706,0.3296,4188.3,4187.8,0.7497]
[1759159029900,5.7969,4187.9,4187.2,0.42958]
[1759159030108,5.7969,4187.9,4187.2,0.245]
[1759159030109,0.7749,4187.3,4187.2,0.245]
[1759159030508,0.7749,4186.7,4186.6,0.63935]
[1759159030816,0.9026,4186.5,4186.4,0.42966]
[1759159031107,0.1277,4186.5,4186.4,0.85136]
[1759159031408,0.7749,4186.9,4186.8,0.85132]
[1759159031809,0.7749,4187.4,4187.3,0.2097]
[1759159032310,0.7749,4186.8,4186.7,0.42964]
[1759159032613,0.7749,4186.8,4186.7,0.64964]
[1759159032914,0.77673982,4186.8,4186.7,0.00221734]
[1759159033111,0.77673982,4186.8,4186.7,0.21191734]
[1759159033405,0.77673982,4186.8,4186.7,0.42391734]
[1759159033711,0.00183982,4186.8,4186.7,0.75191734]
[1759159035616,0.52643982,4186.8,4186.7,0.75191734]
[1759159035916,0.75253982,4186.8,4186.7,0.66891734]
[1759159036116,0.75253982,4186.8,4186.7,0.42391734]
[1759159036710,0.75253982,4186.8,4186.7,0.00221734]
[1759159038116,0.75253982,4186.8,4186.7,0.22721734]
[1759159038918,0.75253982,4186.8,4186.7,0.00221734]
[1759159040713,5.75253982,4186.8,4186.7,0.00221734]
[1759159040918,6.27261517,4186.8,4186.7,0.00221734]
[1759159043719,0.1245,4186.5,4186.3,0.0238]
[1759159043915,1.27077535,4186.4,4186.3,0.0238]
[1759159045617,6.27077535,4186.4,4186.3,0.0238]
[1759159045815,0.4299,4185.7,4185.6,0.42975]
[1759159046121,0.752,4185.7,4185.6,0.42975]
[1759159046319,0.752,4185.7,4185.6,0.43211746]
[1759159047221,1.27195405,4185.7,4185.6,0.00236746]
[1759159047417,6.27195405,4185.7,4185.6,0.00236746]
[1759159047623,0.8765,4184.5,4184.4,0.64978]
[1759159048511,0.5544,4184.5,4184.3,0.42988]
[1759159048722,0.752,4184.4,4184.3,0.42988]
[1759159049117,0.752,4184.4,4184.3,0.64978]
[1759159049319,0.752,4184.4,4184.3,0.85823908]
[1759159049716,0.752,4184.4,4184.3,1.19753908]
[1759159051328,0.752,4184.4,4184.3,0.76765908]
[1759159051519,0.752,4184.4,4184.3,0.42835908]
[1759159051826,0.752,4184.4,4184.3,0.22235908]
[1759159053326,0.752,4184.4,4184.3,0.00245908]
[1759159054421,0.752,4183.7,4183.6,0.2438]
[1759159054820,0.752,4183.7,4183.6,0.2199]
[1759159055216,0.752,4183.7,4183.3,0.245]
[1759159055419,0.5301,4183.1,4183.0,1.44021]
[1759159055619,0.5301,4183.4,4183.3,1.19518]
[1759159056018,0.75439572,4183.4,4183.3,0.76786618]
[1759159056219,0.75439572,4183.4,4183.3,0.22256618]
[1759159056426,0.75439572,4183.4,4183.3,0.00266618]
[1759159057930,0.75439572,4183.4,4181.7,1.07539]
[1759159057931,0.8765,4182.0,4181.9,0.2199]
[1759159058226,0.8765,4182.0,4181.3,0.43019]
[1759159058227,0.5544,4181.5,4181.3,0.43019]
[1759159058422,0.5544,4181.5,4181.3,0.2199]
[1759159058423,0.752,4181.4,4181.3,0.2199]
[1759159058625,0.752,4181.4,4181.2,0.0154]
[1759159059225,0.752,4181.4,4181.2,0.01730099]
[1759159059529,0.208,4179.9,4179.8,1.04884727]
[1759159059731,0.208,4179.9,4179.8,1.38814727]
[1759159060030,0.3221,4180.2,4180.1,0.43032]
[1759159060223,0.8765,4180.5,4180.4,0.43029]
[1759159060624,0.3221,4180.4,4180.3,0.43029]
[1759159060824,0.752,4180.4,4180.3,0.43029]
[1759159061428,0.4299,4179.7,4179.6,0.2199]
[1759159061632,0.752,4179.7,4179.6,0.43037]
[1759159062029,0.75495999,4179.7,4179.6,0.43251556]
[1759159063029,0.75495999,4179.7,4179.6,0.65241556]
[1759159063623,0.75495999,4179.7,4179.6,0.85841556]
[1759159063825,0.00295999,4179.7,4179.6,6.19771556]
[1759159066429,0.5301,4180.7,4180.6,0.85617]
[1759159066636,0.5301,4180.7,4180.6,1.19547]
[1759159067027,0.752,4180.7,4180.6,1.19547]
[1759159067730,0.75476835,4180.7,4180.6,0.85617]
[1759159069138,0.75476835,4180.7,4180.6,1.19547]
[1759159069329,0.223,4181.6,4180.6,1.19547]
[1759159069330,0.208,4181.8,4181.3,0.3393]
[1759159069532,0.4299,4181.4,4181.3,1.19539]
[1759159070532,0.43159892,4181.4,4181.3,1.19539]
[1759159070841,0.43159892,4181.4,4181.3,0.98939]
[1759159071140,0.43159892,4181.4,4181.3,0.43019]
[1759159071337,0.75369892,4181.4,4181.3,0.98939]
[1759159071538,0.00169892,4181.4,4181.3,1.19539]
[1759159071840,0.00169892,4181.4,4181.0,1.20267]
[1759159071841,0.43159892,4181.4,4181.0,0.4664]
[1759159072137,0.752,4181.1,4181.0,0.98943]
[1759159072339,0.4299,4181.1,4180.8,0.43024]
[1759159072544,0.752,4180.7,4180.6,0.5592]
[1759159072837,0.752,4180.7,4180.6,0.98947]
[1759159073341,0.208,4180.7,4180.6,1.19547]
[1759159073529,0.4299,4181.1,4181.0,0.553]
[1759159073735,0.4299,4181.1,4181.0,0.8923]
[1759159074046,0.208,4181.1,4181.0,0.8923]
[1759159074445,0.32379892,4181.4,4181.3,1.19129]
[1759159074446,0.00169892,4181.4,4181.3,1.19129]
[1759159076442,0.2231,4182.3,4182.2,0.4301]
[1759159076644,0.4279,4182.3,4182.2,0.6492]
[1759159077141,0.4279,4182.3,4182.2,0.984]
[1759159077646,0.4279,4182.3,4182.2,1.1912]
[1759159078046,0.429825,4182.3,4182.2,1.1912]
[1759159078344,0.3395,4182.2,4182.1,0.43011]
[1759159078542,0.429825,4182.3,4181.6,0.3348]
[1759159078543,0.7674,4181.7,4181.6,0.3348]
[1759159078848,0.3395,4180.1,4179.9,0.3348]
[1759159079140,0.1245,4180.5,4179.7,0.43035]
[1759159079141,0.7674,4179.8,4179.7,0.5539]
[1759159080245,0.3395,4180.7,4179.9,0.43034]
[1759159080544,0.7674,4179.8,4179.7,0.7611]
[1759159080742,0.2231,4180.1,4180.0,0.43032]
[1759159080944,0.2048,4180.4,4180.3,0.3348]
[1759159081149,0.7674,4180.1,4180.0,0.5539]
[1759159081452,0.7674,4179.7,4179.6,0.55604556]
[1759159081944,0.7674,4179.7,4179.6,0.00214556]
[1759159083042,0.7674,4179.7,4179.6,0.76324556]
[1759159083347,0.7674,4179.7,4179.6,0.55604556]
[1759159083650,0.2231,4179.7,4179.6,0.76324556]
[1759159083849,0.7674,4180.1,4180.0,0.2191]
[1759159084149,0.7674,4180.1,4180.0,0.5539]
[1759159084352,1.28480026,4180.1,4180.0,0.5539]
[1759159084744,1.28480026,4180.1,4180.0,0.2191]
[1759159085138,0.94530026,4180.1,4180.0,0.8872]
[1759159085342,1.28480026,4180.1,4180.0,0.8872]
[1759159085755,0.51740026,4180.1,4180.0,0.8872]
[1759159085949,0.3395,4180.9,4180.1,0.3348]
[1759159086152,0.2231,4180.4,4180.3,0.7611]
[1759159086448,0.2231,4180.4,4180.0,0.1261]
[1759159086449,0.74096379,4180.7,4180.6,0.2191]
[1759159086758,0.74149326,4180.7,4180.6,1.19137]
[1759159087144,0.51839326,4180.7,4180.6,1.19137]
[1759159087548,1.28579326,4180.7,4180.2,0.4303]
[1759159087747,0.4279,4180.1,4179.6,0.00214556]
[1759159088053,0.7674,4179.7,4179.6,0.55604556]
[1759159088252,1.28579326,4179.7,4179.6,0.00214556]
[1759159089247,1.28579326,4179.7,4179.6,0.55604556]
[1759159089759,1.28579326,4179.7,4179.6,0.00214556]
[1759159093151,6.28579326,4179.7,4179.6,0.00214556]
[1759159094359,1.28579326,4179.7,4179.6,0.00214556]
[1759159097152,6.28579326,4179.7,4179.6,0.00214556]
[1759159097351,1.53079326,4179.7,4179.6,0.00214556]
[1759159098062,1.28579326,4179.7,4179.6,0.00214556]
[1759159098263,1.53079326,4179.7,4179.6,0.00214556]
[1759159099052,1.28579326,4179.7,4179.6,0.00214556]
[1759159099353,1.28579326,4179.7,4179.6,0.53584556]
[1759159099665,0.51839326,4179.7,4179.6,0.74224556]
[1759159099956,0.1245,4180.5,4179.6,0.00214556]
[1759159099957,0.7564,4179.8,4179.6,0.00214556]
[1759159100353,0.96315543,4179.7,4179.6,0.00214556]
[1759159100553,1.27475543,4179.7,4179.6,0.21594556]
[1759159100754,0.7564,4179.7,4179.6,0.53584556]
[1759159101558,0.7564,4179.7,4179.6,0.00214556]
[1759159102060,0.4448,4179.7,4179.6,0.74224556]
[1759159102260,0.7564,4179.7,4179.6,0.74224556]
[1759159103465,40.9245,4180.5,4179.6,0.85271556]
[1759159103466,0.3116,4180.1,4179.6,0.85271556]
[1759159103667,1.0014,4180.1,4180.0,0.5337]
[1759159103966,1.52005107,4180.1,4180.0,0.5337]
[1759159104566,1.27505107,4180.1,4180.0,0.5337]
[1759159104767,0.7564,4180.1,4180.0,0.7401]
[1759159105464,0.4448,4180.1,4180.0,1.30473]
[1759159105669,0.4448,4180.1,4180.0,0.8744]
[1759159106265,0.7984,4180.4,4180.3,0.2207]
[1759159106462,1.52822176,4180.4,4180.3,0.5377]
[1759159106663,1.0086,4180.4,4180.3,0.5377]
[1759159107362,1.52869619,4180.4,4180.3,0.5377]
[1759159108465,1.52869619,4180.4,4180.3,0.2207]
[1759159108868,1.52869619,4180.4,4180.3,0.7514]
[1759159109062,0.95749619,4180.4,4180.3,0.7514]
[1759159109464,0.73029619,4180.4,4180.3,0.7514]
[1759159109770,0.52009619,4180.4,4180.3,1.1817]
[1759159110174,1.69693822,4181.9,4181.8,0.317]
[1759159110376,0.3262,4182.4,4181.6,0.317]
[1759159110669,0.7636,4181.7,4181.6,0.2207]
[1759159110871,0.3262,4181.6,4181.3,0.317]
[1759159111075,0.7636,4181.6,4181.5,0.5377]
[1759159111261,0.2102,4181.3,4181.2,1.28658689]
[1759159111466,0.4374,4181.1,4181.0,0.5377]
[1759159111769,0.1248,4181.5,4179.9,1.27214201]
[1759159111770,0.2102,4180.5,4180.4,1.60358689]
[1759159111976,0.4374,4180.5,4180.4,0.7514]
[1759159112376,0.7636,4180.5,4180.4,0.7514]
[1759159112967,0.7636,4180.5,4179.9,0.43034]
[1759159113166,0.3262,4180.4,4180.3,0.2207]
[1759159113474,0.7636,4180.4,4180.3,0.5377]
[1759159116578,0.7636,4180.4,4180.3,0.7514]
[1759159116775,0.7636,4180.4,4180.0,0.1343]
[1759159116986,0.7636,4179.9,4179.8,0.7514]
[1759159117180,0.4374,4179.9,4179.8,0.7514]
[1759159119686,0.2102,4179.9,4179.8,0.7514]
[1759159120486,0.2102,4179.9,4179.8,1.18175]
[1759159121989,0.4374,4179.9,4179.8,0.7514]
[1759159122283,0.4374,4179.9,4179.6,0.00214556]
[1759159122488,0.7636,4179.7,4179.6,0.22284556]
[1759159122692,0.3262,4180.1,4179.8,0.43035]
[1759159122882,0.2102,4179.9,4179.8,0.43035]
[1759159123194,0.5534,4179.8,4179.7,0.2207]
[1759159123382,0.7636,4179.7,4179.6,0.00214556]
[1759159123883,0.7636,4179.7,4179.6,0.22284556]
[1759159124077,0.7636,4179.7,4179.6,0.75354556]
[1759159124284,40.8,4180.9,4179.7,0.317]
[1759159124492,0.4374,4180.1,4180.0,1.31602]
[1759159124697,0.7636,4180.9,4180.8,1.18165]
[1759159124984,0.2102,4180.9,4180.8,0.7514]
[1759159125290,0.4374,4180.7,4180.4,1.28658689]
[1759159125496,0.4374,4180.5,4180.4,0.5377]
[1759159125788,0.4374,4180.9,4180.8,0.7514]
[1759159125985,0.4374,4180.9,4180.8,1.18165]
[1759159126182,0.3262,4181.3,4180.8,1.18165]
[1759159126484,0.7636,4181.3,4181.2,0.5377]
[1759159126688,0.7636,4181.3,4180.7,0.317]
[1759159126882,0.4374,4181.3,4181.2,0.7514]
[1759159127088,0.2102,4181.3,4181.2,0.7514]
[1759159127987,0.3262,4181.7,4181.2,1.1816]
[1759159128184,0.7636,4181.9,4181.8,0.5377]
[1759159128389,0.2102,4181.9,4181.8,0.7514]
[1759159129788,0.4374,4181.9,4181.8,0.7514]
[1759159129994,0.7636,4181.9,4181.8,0.2207]
[1759159130195,0.2102,4181.9,4181.8,0.7514]
[1759159130599,0.328125,4182.3,4181.9,0.317]
[1759159130790,0.538325,4182.3,4182.2,0.7514]
[1759159131697,0.765525,4182.3,4182.2,0.7514]
[1759159131997,0.765525,4182.3,4182.2,0.2207]
[1759159132399,0.439325,4182.3,4182.2,0.7514]
[1759159132595,0.3262,4182.2,4181.9,0.0239]
[1759159132798,0.7636,4182.1,4182.0,0.5377]
[1759159133299,0.001925,4182.3,4182.2,0.4344]
[1759159133601,0.212125,4182.3,4182.2,0.7514]
[1759159134301,0.001925,4182.3,4182.2,0.7514]
[1759159135002,0.210325,4182.3,4182.2,0.7514]
[1759159135292,0.758025,4182.3,4182.2,0.7514]
[1759159135697,0.001925,4182.3,4182.2,0.7514]
[1759159136592,0.210325,4182.3,4182.2,0.7514]
[1759159137402,0.758025,4182.3,4182.2,0.7514]
[1759159138001,0.418125,4182.3,4182.2,0.7514]
[1759159138201,0.210325,4182.3,4182.2,0.7514]
[1759159138598,0.001925,4182.3,4182.2,0.7514]
[1759159140601,0.210325,4182.3,4182.2,0.7514]
[1759159140803,0.418125,4182.3,4182.2,0.7514]
[1759159141598,0.210325,4182.3,4182.2,0.7514]
[1759159142207,0.5483,4183.1,4183.0,0.4359]
[1759159142411,0.5483,4183.1,4183.0,0.8755]
[1759159142412,0.4162,4183.1,4183.0,0.8755]
[1759159142601,0.7561,4183.1,4183.0,0.7461]
[1759159143007,0.4162,4183.1,4183.0,0.8755]
[1759159143304,0.41849953,4183.1,4183.0,0.87802431]
[1759159144111,0.75839953,4183.1,4183.0,0.31272431]
[1759159144306,0.75839953,4183.1,4183.0,0.00252431]
[1759159144511,0.75839953,4183.1,4183.0,0.52812431]
[1759159144709,0.41849953,4183.1,4183.0,0.87802431]
[1759159144908,0.00229953,4183.1,4183.0,1.30804431]
[1759159145100,0.00229953,4183.1,4183.0,0.87802431]
[1759159145509,0.00229953,4183.1,4183.0,1.30804431]
[1759159146212,0.2084,4183.9,4183.8,0.7461]
[1759159146414,0.3399,4184.3,4183.8,0.4359]
[1759159146714,0.9831,4184.3,4184.2,0.5256]
[1759159146911,0.9831,4184.3,4184.2,0.7461]
[1759159146912,0.7561,4184.3,4184.2,0.7461]
[1759159147108,0.21134629,4184.3,4184.2,0.7461]
[1759159147413,0.41914629,4184.3,4184.2,0.7461]
[1759159147716,0.75904629,4184.3,4184.2,0.7461]
[1759159148212,0.7561,4184.2,4184.1,0.5256]
[1759159148405,0.7561,4184.2,4184.1,0.7461]
[1759159148807,0.4162,4184.2,4184.1,0.7461]
[1759159149514,0.2084,4184.2,4184.1,0.7461]
[1759159150017,0.7561,4184.2,4184.1,0.7461]
[1759159150710,0.7561,4184.2,4183.2,0.43]
[1759159150907,0.4162,4183.4,4183.3,0.7461]
[1759159151112,0.7561,4183.4,4183.3,0.7461]
[1759159151407,0.2084,4183.4,4183.3,0.7461]
[1759159151710,0.3399,4183.7,4183.4,0.3102]
[1759159151910,0.00294629,4184.3,4183.7,0.3102]
[1759159152208,0.75904629,4184.3,4184.2,0.7461]
[1759159152411,41.55904629,4184.3,4184.2,0.7461]
[1759159152617,41.55904629,4184.3,4184.0,0.1294]
[1759159152817,0.7561,4184.1,4184.0,0.655]
[1759159153012,0.4162,4184.1,4184.0,0.8755]
[1759159153411,0.2084,4184.1,4184.0,0.8755]
[1759159154617,0.00294629,4184.3,4184.0,0.8755]
[1759159154811,0.00294629,4184.3,4184.2,0.4265]
[1759159155016,0.00294629,4184.3,4184.2,0.7626]
[1759159155412,0.3278,4185.6,4184.5,0.1263]
[1759159155610,0.007,4185.7,4184.5,0.1263]
[1759159155810,0.3278,4185.6,4184.6,0.3361]
[1759159156011,0.3278,4185.6,4184.7,0.42984]
[1759159156313,0.2083,4184.9,4184.8,0.7626]
[1759159156615,0.3278,4185.4,4184.9,0.3361]
[1759159157015,0.2083,4185.0,4184.9,0.4265]
[1759159157215,0.4355,4185.0,4184.6,0.3361]
[1759159157411,0.7633,4184.7,4184.6,0.5437]
[1759159157813,0.3278,4185.3,4184.6,0.4265]
[1759159158013,0.2083,4184.8,4184.7,0.7626]
[1759159158209,0.7633,4184.8,4184.7,0.5437]
[1759159158512,0.4376617,4185.4,4185.3,0.7626]
[1759159158715,0.7654617,4185.4,4185.0,0.1263]
[1759159158908,0.4355,4185.2,4184.5,0.1263]
[1759159159113,0.2083,4184.7,4184.6,0.7626]
[1759159159309,0.3278,4185.1,4184.9,0.42983]
[1759159159514,0.5382617,4185.4,4185.3,0.7626]
[1759159159718,0.2104617,4185.4,4185.3,0.7626]
[1759159160317,0.4376617,4185.4,4185.3,0.7626]
[1759159160632,0.7654617,4185.4,4185.3,0.7626]
[1759159161421,0.4376617,4185.4,4185.3,0.7626]
[1759159161727,0.7654617,4185.4,4185.3,0.7626]
[1759159162824,0.7654617,4185.4,4184.8,0.3361]
[1759159163329,0.7654617,4185.4,4185.3,0.2076]
[1759159163624,0.7654617,4185.4,4185.3,0.5437]
[1759159164221,0.7654617,4185.4,4185.3,0.7651]
[1759159164424,0.4376617,4185.4,4185.3,0.7651]
[1759159165221,0.2104617,4185.4,4185.3,0.7651]
[1759159165527,0.0021617,4185.4,4185.3,0.7651]
[1759159165730,0.0021617,4185.4,4185.3,1.19489]
[1759159166030,0.0021617,4185.4,4185.3,0.7651]
[1759159166522,0.2136617,4185.4,4185.3,0.7651]
[1759159168230,0.0021617,4185.4,4185.3,0.7651]
[1759159168624,0.0021617,4185.4,4185.3,1.19489]
[1759159169431,0.7565,4186.5,4186.4,0.2175]
[1759159169626,0.6235,4186.5,4186.4,0.7672]
[1759159170332,0.43138996,4186.5,4186.4,0.7695201]
[1759159170925,0.75938996,4186.5,4186.4,0.7695201]
[1759159171231,0.75938996,4186.5,4186.4,0.5481201]
[1759159171728,0.88218996,4186.5,4186.4,0.0023201]
[1759159172030,0.88218996,4186.5,4186.4,0.2198201]
[1759159172424,0.75938996,4186.5,4186.4,0.5481201]
[1759159172729,0.75938996,4186.5,4186.4,0.2198201]
[1759159173524,0.75938996,4186.5,4186.4,0.5481201]
[1759159173724,0.75938996,4186.5,4186.4,0.7695201]
[1759159173725,0.21438996,4186.5,4186.4,0.7695201]
[1759159174629,0.00288996,4186.5,4186.4,0.7695201]
[1759159175832,0.21438996,4186.5,4186.4,0.7695201]
[1759159176333,0.00288996,4186.5,4186.4,0.7695201]
[1759159178028,0.75938996,4186.5,4186.4,0.7695201]
[1759159178428,0.43138996,4186.5,4186.4,0.7695201]
[1759159179028,0.00288996,4186.5,4186.4,0.7695201]
[1759159179230,0.21438996,4186.5,4186.4,0.7695201]
[1759159181035,0.00288996,4186.5,4186.4,1.1992001]
[1759159181230,0.5395,4187.4,4187.3,0.4389]
[1759159181432,1.07221282,4187.4,4187.3,0.7672]
[1759159181733,1.28921282,4187.4,4187.3,0.7672]
[1759159182337,1.24330738,4187.4,4187.3,0.7672]
[1759159182537,1.48830738,4187.4,4187.3,0.7672]
[1759159182934,0.91530738,4187.4,4187.3,0.7672]
[1759159183144,1.16030738,4187.4,4187.3,0.7672]
[1759159183640,1.48830738,4187.4,4187.3,0.7672]
[1759159184135,1.16030738,4187.4,4187.3,0.7672]
[1759159184336,1.48830738,4187.4,4187.3,0.7672]
[1759159186039,1.24330738,4187.4,4187.3,0.7672]
[1759159186240,1.48830738,4187.4,4187.3,0.5458]
[1759159188542,1.16030738,4187.4,4187.1,0.3283]
[1759159188844,0.4285,4187.2,4187.1,0.7672]
[1759159189044,0.4565,4187.2,4187.1,0.7672]
[1759159189430,1.0015,4187.2,4187.1,0.7672]
[1759159189940,0.6735,4187.2,4187.1,0.7672]
[1759159190342,1.0015,4187.2,4187.1,0.7672]
[1759159191751,1.48633037,4187.2,4186.6,0.3283]
[1759159192054,0.7565,4186.6,4186.5,0.5458]
[1759159192747,0.328,4186.5,4186.4,0.3306201]
[1759159192935,0.7565,4186.5,4186.4,0.5481201]
[1759159193247,0.8793,4186.5,4186.4,0.0023201]
[1759159194746,1.36462987,4186.5,4186.4,0.0023201]
[1759159196444,1.36462987,4186.5,4186.4,0.2195201]
[1759159196649,1.48682987,4186.5,4186.4,0.5295201]
[1759159197247,1.48682987,4186.5,4186.4,0.2195201]
[1759159197447,1.48682987,4186.5,4186.4,0.0023201]
[1759159198548,1.61682987,4186.5,4186.4,0.0023201]
[1759159199145,1.61682987,4186.5,4185.7,0.31]
[1759159199447,0.7473,4185.8,4185.7,0.7362]
[1759159199847,40.9228,4187.0,4185.8,0.31]
[1759159200146,0.81354134,4186.9,4185.8,0.43189012]
[1759159200444,1.47834134,4186.8,4186.7,0.5272]
[1759159200743,1.15084134,4186.8,4186.7,0.7362]
[1759159200942,0.3275,4186.7,4186.1,0.31]
[1759159201151,0.4198,4186.2,4186.1,0.7362]
[1759159201357,0.2046,4186.2,4186.1,0.7362]
[1759159201640,0.245,4186.3,4186.2,0.31]
[1759159201845,0.245,4186.3,4186.2,0.7362]
[1759159202243,0.9923,4186.3,4186.2,0.5272]
[1759159202439,0.9923,4186.3,4185.8,1.28873701]
[1759159202440,0.9923,4186.3,4185.9,0.31]
[1759159202636,0.9923,4186.3,4185.8,0.00215012]
[1759159202637,0.1228,4186.0,4185.8,0.00215012]
[1759159202836,0.4198,4185.3,4185.2,0.31]
[1759159203050,0.7473,4185.3,4185.2,0.5272]
[1759159203537,0.7473,4185.3,4185.0,0.31]
[1759159203737,0.3275,4185.2,4185.1,0.4262]
[1759159203950,0.7473,4186.0,4185.9,0.7362]
[1759159204150,0.8663,4186.0,4185.9,0.7362]
[1759159204448,0.8663,4186.0,4185.9,0.5272]
[1759159204647,0.8663,4186.0,4185.5,0.1322]
[1759159204648,0.7473,4185.6,4185.5,0.8684]
[1759159204851,0.7473,4185.6,4185.5,0.7362]
[1759159205354,0.4198,4185.6,4185.5,0.8684]
[1759159207250,0.245,4185.9,4185.6,0.31]
[1759159207453,0.9923,4185.9,4185.8,0.5272]
[1759159207845,0.9923,4185.9,4185.8,0.7362]
[1759159208045,0.245,4185.9,4185.8,0.7362]
[1759159208450,0.4496,4185.9,4185.8,0.7362]
[1759159209054,0.2046,4185.9,4185.8,0.7362]
[1759159209251,0.4496,4186.1,4186.0,0.8684]
[1759159209450,0.7473,4186.7,4186.6,0.7362]
[1759159209756,1.23878321,4186.7,4186.6,0.7362]
[1759159211052,0.49148321,4186.7,4186.6,0.7362]
[1759159211252,0.245,4186.9,4186.6,0.4262]
[1759159211454,0.245,4186.9,4186.8,0.7362]
[1759159211759,0.4496,4186.9,4186.8,0.7362]
[1759159211951,0.2046,4186.9,4186.8,0.7362]
[1759159212152,0.245,4187.2,4186.8,0.7362]
[1759159212355,0.245,4187.2,4186.5,0.1322]
[1759159212356,0.2046,4187.1,4187.0,0.8684]
[1759159212555,0.7473,4187.1,4187.0,0.7362]
[1759159212954,1.2381628,4187.1,4187.0,0.7362]
[1759159213259,0.4198,4187.1,4187.0,0.8684]
[1759159213659,0.6648,4187.1,4187.0,0.8684]
[1759159214962,0.9801,4187.1,4187.0,0.8684]
[1759159215160,0.4496,4187.1,4187.0,0.8684]
[1759159215865,0.6728,4187.1,4187.0,0.8684]
[1759159216064,1.47903778,4187.1,4187.0,0.7362]
[1759159216565,0.7571,4186.7,4186.6,0.744]
[1759159217458,0.4418,4186.7,4186.6,0.744]
[1759159220073,0.7571,4186.7,4186.6,0.744]
[1759159220771,0.7571,4186.7,4186.0,1.41878689]
[1759159220972,0.3153,4186.1,4185.8,1.59808689]
[1759159221176,0.3153,4186.1,4185.8,0.531]
[1759159221177,0.7571,4185.9,4185.8,0.531]
[1759159221472,0.4418,4185.9,4185.8,0.744]
[1759159221976,0.7571,4185.9,4185.8,0.744]
[1759159222171,0.4418,4185.9,4185.8,0.744]
[1759159223577,0.4418,4185.9,4185.7,0.3115]
[1759159223877,0.7571,4185.7,4185.6,0.0238]
[1759159224079,0.7571,4185.7,4185.6,0.7678]
[1759159224672,0.4418,4185.7,4185.6,0.7678]
[1759159224872,0.7756,4185.7,4185.6,0.7678]
[1759159228575,0.7756,4185.7,4185.6,0.3353]
[1759159228780,0.7756,4185.7,4185.6,0.7685]
[1759159231374,0.7756,4185.7,4185.6,0.7447]
[1759159232180,0.7756,4185.7,4185.0,0.00281442]
[1759159232181,41.5756,4185.7,4185.0,0.00281442]
[1759159232477,0.2235,4184.3,4184.2,0.7447]
[1759159232684,0.5573,4184.3,4184.2,0.7447]
[1759159232890,0.2235,4184.3,4184.2,0.7447]
[1759159233288,0.0023316,4184.3,4184.2,1.17628688]
[1759159234483,0.0023316,4184.3,4184.2,0.74637688]